fUST/lending_fUST_20250924
["ID","MTS","AMOUNT","RATE_DAILY","PERIOD"]
[387221183,1758659439316,-480.0,0.00021917,2]
[387221184,1758659439325,-1568.75,0.00021917,2]
[387221185,1758659439334,-480.0,0.00021917,2]
[387221186,1758659439343,-480.0,0.00021917,2]
[387221187,1758659439352,-1051.23,0.00021917,2]
[387221188,1758659439361,-672.82,0.00021917,2]
[387221189,1758659439371,-551.69,0.00021917,2]
[387221190,1758659439380,-490.54,0.00021917,2]
[387221191,1758659439389,-8172.77,0.00021917,2]
[387221192,1758659439398,-2530.7,0.00021917,2]
[387221193,1758659439407,-758.16,0.00021917,2]
[387221194,1758659439416,-663.85,0.00021917,2]
[387221195,1758659439425,-480.0,0.00021917,2]
[387221196,1758659439435,-203.890194,0.00021918,2]
[387221197,1758659439444,-203.890194,0.00021918,2]
[387221198,1758659439454,-203.890194,0.00021918,2]
[387221199,1758659439464,-203.890194,0.00021918,2]
[387221200,1758659439473,-203.890194,0.00021918,2]
[387221201,1758659439482,-203.890194,0.00021918,2]
[387221202,1758659439492,-203.890194,0.00021918,2]
[387221203,1758659439501,-203.890194,0.00021918,2]
[387221204,1758659439512,-203.890194,0.00021918,2]
[387221205,1758659439521,-203.890194,0.00021918,2]
[387221206,1758659439530,-203.890194,0.00021918,2]
[387221207,1758659439539,-203.890194,0.00021918,2]
[387221208,1758659439548,-203.890194,0.00021918,2]
[387221209,1758659439557,-203.890194,0.00021918,2]
[387221210,1758659439567,-203.890194,0.00021918,2]
[387221211,1758659439576,-203.890194,0.00021918,2]
[387221212,1758659439585,-203.890194,0.00021918,2]
[387221213,1758659439594,-203.890194,0.00021918,2]
[387221214,1758659439604,-203.890194,0.00021918,2]
[387221215,1758659439613,-203.890197,0.00021918,2]
[387221216,1758659439622,-151.0,0.00021918,2]
[387221217,1758659439632,-395.663574,0.00021918,2]
[387221218,1758659439641,-395.663574,0.00021918,2]
[387221219,1758659439650,-395.663574,0.00021918,2]
[387221220,1758659439660,-395.663574,0.00021918,2]
[387221221,1758659439669,-395.663574,0.00021918,2]
[387221222,1758659439678,-163.5469099,0.00021918,7]
[387221223,1758659439687,-150.0,0.00021918,7]
[387221224,1758659439696,-151.0,0.00021918,2]
[387221225,1758659439706,-500.0,0.00021948,2]
[387221226,1758659439715,-478.78102613,0.00021948,2]
[387221228,1758659439724,-500.0,0.00021948,2]
[387221229,1758659439733,-500.0,0.00021948,2]
[387221230,1758659439743,-500.0,0.00021948,2]
[387221231,1758659439754,-475.39526004,0.00021948,2]
[387221232,1758659439766,-500.0,0.00021986,2]
[387221234,1758659439776,-161.0,0.00022,2]
[387221236,1758659439785,-500.0,0.00022004,2]
[387221238,1758659439794,-236.20220787,0.00022023,2]
[387221240,1758659439803,-500.0,0.00022029,2]
[387221242,1758659439813,-500.0,0.00022033,2]
[387221244,1758659439822,-500.0,0.00022035,2]
[387221245,1758659439831,-4208.31391703,0.00022044,2]
[387221247,1758659439840,-360.0,0.00022096,2]
[387221249,1758659439850,-542.25,0.00022191,2]
[387221251,1758659439859,-178.71,0.00022191,2]
[387221253,1758659439868,-480.0,0.00022191,2]
[387221255,1758659439877,-587.62,0.00022191,2]
[387221257,1758659439886,-778.27,0.00022191,2]
[387221259,1758659439896,-1515.33,0.00022191,2]
[387221262,1758659439906,-3653.35,0.00022191,2]
[387221264,1758659439916,-513.41,0.00022191,2]
[387221265,1758659439925,-598.16,0.00022191,2]
[387221268,1758659439934,-499.79,0.00022191,2]
[387221270,1758659439944,-480.0,0.00022191,2]
[387221271,1758659439953,-486.85,0.00022191,2]
[387221281,1758659440040,-603.99,0.00022191,2]
[387221282,1758659440049,-1191.55,0.00022191,2]
[387221284,1758659440059,-480.0,0.00022191,2]
[387221285,1758659440068,-480.0,0.00022191,2]
[387221287,1758659440077,-480.0,0.00022191,2]
[387221288,1758659440087,-1568.75,0.00022191,2]
[387221290,1758659440096,-331.3,0.00022191,2]
[387221291,1758659440105,-480.0,0.00022191,2]
[387221293,1758659440115,-1051.23,0.00022191,2]
[387221294,1758659440124,-672.82,0.00022191,2]
[387221296,1758659440133,-551.69,0.00022191,2]
[387221297,1758659440142,-490.54,0.00022191,2]
[387221299,1758659440151,-8172.77,0.00022191,2]
[387221300,1758659440161,-2530.7,0.00022191,2]
[387221302,1758659440170,-758.16,0.00022191,2]
[387221303,1758659440180,-663.85,0.00022191,2]
[387221305,1758659440190,-480.0,0.00022191,2]
[387221307,1758659440199,-198.0,0.00022192,2]
[387221308,1758659440208,-151.0,0.000222,5]
[387221309,1758659440218,-151.0,0.000222,7]
[387221311,1758659440226,-1000.0,0.000222,2]
[387221313,1758659440236,-1000.0,0.000222,2]
[387221314,1758659440245,-1000.0,0.000222,2]
[387221316,1758659440254,-1000.0,0.000222,2]
[387221317,1758659440264,-1000.0,0.000222,2]
[387221319,1758659440273,-1000.0,0.000222,2]
[387221321,1758659440282,-1000.0,0.000222,2]
[387221322,1758659440291,-501.00043887,0.000222,2]
[387221324,1758659440300,-1000.0,0.000222,2]
[387221326,1758659440310,-1008.17385346,0.00022204,2]
[387221327,1758659440319,-1000.0,0.00022204,2]
[387221328,1758659440328,-1000.0,0.00022219,2]
[387221330,1758659440337,-1000.0,0.00022219,2]
[387221332,1758659440346,-507.08757954,0.00022221,2]
[387221333,1758659440355,-1000.0,0.00022221,2]
[387221335,1758659440364,-1000.0,0.00022221,2]
[387221336,1758659440373,-1000.0,0.00022221,2]
[387221338,1758659440382,-1000.0,0.00022221,2]
[387221340,1758659440391,-1000.0,0.00022221,2]
[387221341,1758659440401,-5000.0,0.00022274,2]
[387221343,1758659440410,-600.0,0.00022295,2]
[387221345,1758659440419,-500.0,0.00022295,2]
[387221346,1758659440428,-969.0,0.000223,2]
[387221348,1758659440438,-500.0,0.00022337,2]
[387221349,1758659440446,-500.0,0.00022349,2]
[387221351,1758659440455,-500.0,0.00022352,2]
[387221353,1758659440464,-4593.36,0.00022356,2]
[387221354,1758659440473,-600.0,0.00022356,2]
[387221356,1758659440484,-500.0,0.00022364,2]
[387221358,1758659440494,-600.0,0.00022383,2]
[387221359,1758659440503,-500.0,0.00022392,2]
[387221361,1758659440514,-600.0,0.00022409,2]
[387221362,1758659440523,-3000.0,0.00022411,2]
[387221364,1758659440532,-4161.84261621,0.00022424,2]
[387221365,1758659440541,-153.0,0.00022438,2]
[387221367,1758659440552,-500.0,0.00022447,2]
[387221368,1758659440561,-542.25,0.00022465,2]
[387221370,1758659440570,-480.0,0.00022465,2]
[387221371,1758659440579,-587.62,0.00022465,2]
[387221372,1758659440589,-778.27,0.00022465,2]
[387221373,1758659440598,-1515.33,0.00022465,2]
[387221374,1758659440607,-3653.35,0.00022465,2]
[387221375,1758659440617,-513.41,0.00022465,2]
[387221376,1758659440626,-598.16,0.00022465,2]
[387221377,1758659440635,-499.79,0.00022465,2]
[387221378,1758659440644,-480.0,0.00022465,2]
[387221379,1758659440653,-486.85,0.00022465,2]
[387221380,1758659440662,-603.99,0.00022465,2]
[387221381,1758659440672,-1191.55,0.00022465,2]
[387221382,1758659440682,-480.0,0.00022465,2]
[387221383,1758659440691,-480.0,0.00022465,2]
[387221384,1758659440700,-480.0,0.00022465,2]
[387221385,1758659440709,-1568.75,0.00022465,2]
[387221387,1758659440718,-480.0,0.00022465,2]
[387221388,1758659440727,-1051.23,0.00022465,2]
[387221390,1758659440737,-672.82,0.00022465,2]
[387221391,1758659440747,-551.69,0.00022465,2]
[387221392,1758659440764,-490.54,0.00022465,2]
[387221393,1758659440774,-8172.77,0.00022465,2]
[387221394,1758659440783,-2530.7,0.00022465,2]
[387221395,1758659440793,-758.16,0.00022465,2]
[387221396,1758659440803,-663.85,0.00022465,2]
[387221397,1758659440812,-480.0,0.00022465,2]
[387221398,1758659440822,-1000.0,0.00022496,2]
[387221399,1758659440838,-1000.0,0.00022496,2]
[387221400,1758659440847,-1000.0,0.00022496,2]
[387221401,1758659440857,-500.0,0.00022501,2]
[387221402,1758659440866,-500.0,0.00022503,2]
[387221403,1758659440877,-600.0,0.00022512,2]
[387221404,1758659440886,-600.0,0.00022523,2]
[387221405,1758659440895,-987.23016724,0.00022534,2]
[387221406,1758659440906,-1000.0,0.00022552,2]
[387221407,1758659440915,-600.0,0.00022579,2]
[387221408,1758659440924,-1000.0,0.00022581,2]
[387221409,1758659440934,-1000.0,0.00022583,2]
[387221410,1758659440943,-151.0,0.000226,5]
[387221411,1758659440952,-151.0,0.000226,8]
[387221412,1758659440961,-460.0,0.00022644,2]
[387221413,1758659440972,-600.0,0.00022654,2]
[387221414,1758659440981,-500.0,0.00022695,2]
[387221415,1758659440991,-1000.0,0.000227,2]
[387221416,1758659441000,-1000.0,0.000227,2]
[387221417,1758659441009,-1000.0,0.000227,2]
[387221418,1758659441018,-1000.0,0.000227,2]
[387221419,1758659441028,-1000.0,0.000227,2]
[387221420,1758659441037,-1000.0,0.000227,2]
[387221421,1758659441046,-1000.0,0.000227,2]
[387221422,1758659441055,-1000.0,0.000227,2]
[387221423,1758659441064,-1000.0,0.000227,2]
[387221424,1758659441073,-1000.0,0.000227,2]
[387221425,1758659441082,-542.25,0.00022739,2]
[387221426,1758659441092,-480.0,0.00022739,2]
[387221427,1758659441101,-587.62,0.00022739,2]
[387221428,1758659441111,-778.27,0.00022739,2]
[387221429,1758659441120,-1515.33,0.00022739,2]
[387221430,1758659441129,-3653.35,0.00022739,2]
[387221431,1758659441138,-513.41,0.00022739,2]
[387221432,1758659441147,-598.16,0.00022739,2]
[387221433,1758659441155,-499.79,0.00022739,2]
[387221434,1758659441163,-480.0,0.00022739,2]
[387221435,1758659441172,-486.85,0.00022739,2]
[387221436,1758659441181,-603.99,0.00022739,2]
[387221437,1758659441190,-1191.55,0.00022739,2]
[387221438,1758659441199,-592.84088785,0.00022739,2]
[387221439,1758659441208,-480.0,0.00022739,2]
[387221440,1758659441217,-480.0,0.00022739,2]
[387221441,1758659441226,-1568.75,0.00022739,2]
[387221442,1758659441236,-480.0,0.00022739,2]
[387221443,1758659441245,-1051.23,0.00022739,2]
[387221444,1758659441254,-672.82,0.00022739,2]
[387221445,1758659441264,-551.69,0.00022739,2]
[387221446,1758659441273,-490.54,0.00022739,2]
[387221447,1758659441282,-8172.77,0.00022739,2]
[387221448,1758659441292,-2530.7,0.00022739,2]
[387221449,1758659441302,-758.16,0.00022739,2]
[387221450,1758659441311,-663.85,0.00022739,2]
[387221451,1758659441320,-480.0,0.00022739,2]
[387221452,1758659441330,-761.85483045,0.00022748,2]
[387221453,1758659441339,-1500.0,0.00022748,2]
[387221454,1758659441348,-1500.0,0.00022748,2]
[387221455,1758659441357,-552.13289165,0.00022748,2]
[387221456,1758659441367,-526.44626996,0.00022748,2]
[387221457,1758659441376,-1137.42151261,0.00022748,2]
[387221458,1758659441386,-509.68857799,0.00022748,2]
[387221459,1758659441395,-1500.0,0.00022748,2]
[387221460,1758659441404,-373.93849134,0.00022752,2]
[387221461,1758659441414,-391.04404558,0.00022767,2]
[387221462,1758659441424,-1500.0,0.00022767,2]
[387221463,1758659441433,-551.64851946,0.00022769,2]
[387221464,1758659441443,-1500.0,0.00022769,2]
[387221465,1758659441452,-817.37617066,0.00022769,2]
[387221466,1758659441461,-873.49166916,0.00022769,2]
[387221467,1758659441471,-587.0,0.00022774,2]
[387221468,1758659441481,-600.0,0.00022785,2]
[387221469,1758659441490,-285.37145327,0.000228,2]
[387221470,1758659441499,-600.0,0.00022868,2]
[387221471,1758659441509,-500.0,0.00022913,2]
[387221472,1758659441519,-1347.95915998,0.00022959,2]
[387221473,1758659441528,-600.0,0.00022961,2]
[387221474,1758659441537,-600.0,0.00022971,2]
[387221475,1758659441546,-500.0,0.00022972,2]
[387221476,1758659441555,-600.0,0.00022985,2]
[387221477,1758659441564,-6803.5446182,0.00023,2]
[387221478,1758659441574,-2956.86127639,0.00023,2]
[387221479,1758659441584,-160.0,0.00023,2]
[387221480,1758659441593,-542.25,0.00023013,2]
[387221481,1758659441602,-480.0,0.00023013,2]
[387221482,1758659441611,-587.62,0.00023013,2]
[387221483,1758659441621,-778.27,0.00023013,2]
[387221484,1758659441630,-1515.33,0.00023013,2]
[387221485,1758659441639,-3653.35,0.00023013,2]
[387221486,1758659441649,-513.41,0.00023013,2]
[387221487,1758659441658,-499.79,0.00023013,2]
[387221488,1758659441668,-598.16,0.00023013,2]
[387221489,1758659441677,-480.0,0.00023013,2]
[387221490,1758659441687,-486.85,0.00023013,2]
[387221491,1758659441697,-603.99,0.00023013,2]
[387221492,1758659441707,-1191.55,0.00023013,2]
[387221493,1758659441716,-480.0,0.00023013,2]
[387221494,1758659441725,-480.0,0.00023013,2]
[387221495,1758659441735,-1568.75,0.00023013,2]
[387221496,1758659441745,-480.0,0.00023013,2]
[387221497,1758659441758,-1051.23,0.00023013,2]
[387221498,1758659441768,-672.82,0.00023013,2]
[387221499,1758659441778,-551.69,0.00023013,2]
[387221500,1758659441787,-490.54,0.00023013,2]
[387221501,1758659441798,-8172.77,0.00023013,2]
[387221502,1758659441808,-2530.7,0.00023013,2]
[387221503,1758659441817,-758.16,0.00023013,2]
[387221504,1758659441828,-663.85,0.00023013,2]
[387221505,1758659441837,-480.0,0.00023013,2]
[387221506,1758659441847,-500.0,0.00023035,2]
[387221507,1758659441856,-501.11660757,0.00023044,2]
[387221508,1758659441946,-1500.0,0.00023044,2]
[387221509,1758659441955,-1500.0,0.00023044,2]
[387221510,1758659441965,-500.0,0.00023044,2]
[387221511,1758659441974,-600.0,0.00023044,2]
[387221512,1758659441984,-600.0,0.0002307,2]
[387221513,1758659441994,-151.0,0.000231,9]
[387221514,1758659442011,-151.0,0.000231,8]
[387221515,1758659442026,-197.9616107,0.000231,2]
[387221516,1758659442036,-600.0,0.00023106,2]
[387221517,1758659442045,-600.0,0.00023108,2]
[387221518,1758659442054,-4208.31391703,0.00023116,2]
[387221519,1758659442064,-157.3834965,0.00023129,2]
[387221520,1758659442073,-1500.0,0.00023131,2]
[387221521,1758659442082,-600.0,0.00023187,2]
[387221522,1758659442091,-560.0,0.00023192,2]
[387221523,1758659442101,-600.0,0.000232,2]
[387221524,1758659442111,-600.0,0.00023208,2]
[387221525,1758659442120,-500.0,0.00023231,2]
[387221526,1758659442129,-923.24884838,0.00023239,2]
[387221527,1758659442138,-153.0,0.0002326,2]
[387221528,1758659442147,-600.0,0.00023277,2]
[387221529,1758659442157,-500.0,0.00023287,2]
[387221530,1758659442167,-542.25,0.00023287,2]
[387221531,1758659442176,-306.66929927,0.00023287,2]
[387221532,1758659442185,-587.62,0.00023287,2]
[387221533,1758659442195,-1704.61,0.00023287,2]
[387221534,1758659442204,-778.27,0.00023287,2]
[387221535,1758659442213,-1515.33,0.00023287,2]
[387221536,1758659442222,-3653.35,0.00023287,2]
[387221537,1758659442232,-513.41,0.00023287,2]
[387221538,1758659442242,-499.79,0.00023287,2]
[387221539,1758659442251,-598.16,0.00023287,2]
[387221540,1758659442260,-480.0,0.00023287,2]
[387221541,1758659442269,-486.85,0.00023287,2]
[387221542,1758659442279,-603.99,0.00023287,2]
[387221543,1758659442288,-1191.55,0.00023287,2]
[387221544,1758659442297,-480.0,0.00023287,2]
[387221545,1758659442306,-480.0,0.00023287,2]
[387221546,1758659442315,-1568.75,0.00023287,2]
[387221547,1758659442324,-480.0,0.00023287,2]
[387221548,1758659442333,-1051.23,0.00023287,2]
[387221549,1758659442342,-672.82,0.00023287,2]
[387221550,1758659442351,-551.69,0.00023287,2]
[387221551,1758659442361,-490.54,0.00023287,2]
[387221553,1758659442370,-8172.77,0.00023287,2]
[387221554,1758659442379,-2530.7,0.00023287,2]
[387221555,1758659442388,-758.16,0.00023287,2]
[387221556,1758659442397,-663.85,0.00023287,2]
[387221557,1758659442406,-480.0,0.00023287,2]
[387221558,1758659442415,-151.0,0.00023288,7]
[387221559,1758659442423,-2000.0,0.00023296,2]
[387221560,1758659442432,-2002.84960611,0.00023296,2]
[387221561,1758659442441,-2000.0,0.00023296,2]
[387221562,1758659442450,-2000.0,0.00023315,2]
[387221563,1758659442459,-2000.0,0.00023317,2]
[387221564,1758659442468,-150.0,0.00023321,2]
[387221565,1758659442478,-600.0,0.00023345,2]
[387221566,1758659442486,-500.0,0.00023383,2]
[387221567,1758659442496,-500.0,0.00023398,2]
[387221568,1758659442505,-600.0,0.00023408,2]
[387221571,1758659442515,-600.0,0.00023476,2]
[387221572,1758659442524,-600.0,0.00023491,2]
[387221574,1758659442533,-236.20220787,0.00023496,2]
[387221575,1758659442542,-151.0,0.000235,10]
[387221576,1758659442552,-151.0,0.000235,7]
[387221577,1758659442561,-151.0,0.000235,7]
[387221578,1758659442571,-151.0,0.000235,8]
[387221579,1758659442580,-500.0,0.00023504,2]
[387221580,1758659442590,-600.0,0.00023506,2]
[387221581,1758659442599,-542.25,0.00023561,2]
[387221582,1758659442608,-587.62,0.00023561,2]
[387221583,1758659442618,-778.27,0.00023561,2]
[387221584,1758659442628,-1515.33,0.00023561,2]
[387221585,1758659442637,-3653.35,0.00023561,2]
[387221586,1758659442646,-513.41,0.00023561,2]
[387221587,1758659442655,-598.16,0.00023561,2]
[387221588,1758659442665,-499.79,0.00023561,2]
[387221589,1758659442674,-480.0,0.00023561,2]
[387221590,1758659442683,-486.85,0.00023561,2]
[387221591,1758659442692,-603.99,0.00023561,2]
[387221592,1758659442702,-1191.55,0.00023561,2]
[387221593,1758659442711,-480.0,0.00023561,2]
[387221594,1758659442720,-480.0,0.00023561,2]
[387221595,1758659442729,-1568.75,0.00023561,2]
[387221596,1758659442738,-480.0,0.00023561,2]
[387221597,1758659442747,-1051.23,0.00023561,2]
[387221598,1758659442759,-672.82,0.00023561,2]
[387221599,1758659442770,-551.69,0.00023561,2]
[387221600,1758659442779,-490.54,0.00023561,2]
[387221601,1758659442788,-8172.77,0.00023561,2]
[387221602,1758659442798,-2530.7,0.00023561,2]
[387221603,1758659442807,-758.16,0.00023561,2]
[387221604,1758659442816,-663.85,0.00023561,2]
[387221605,1758659442826,-480.0,0.00023561,2]
[387221606,1758659442834,-500.0,0.00023563,2]
[387221607,1758659442842,-910.85250859,0.00023583,2]
[387221608,1758659442850,-600.0,0.00023584,2]
[387221609,1758659442858,-600.0,0.00023587,2]
[387221610,1758659442866,-2000.0,0.00023592,2]
[387221611,1758659442875,-153.62833441,0.00023592,2]
[387221612,1758659442884,-600.0,0.00023629,2]
[387221613,1758659442896,-2000.0,0.00023679,2]
[387221614,1758659442905,-1074.18083924,0.00023716,2]
[387221615,1758659442914,-660.0,0.0002374,2]
[387221616,1758659442926,-285.37145327,0.0002376,7]
[387221617,1758659442935,-500.0,0.00023768,2]
[387221618,1758659442944,-500.69370437,0.00023796,2]
[387221619,1758659442953,-2000.0,0.000238,2]
[387221620,1758659442962,-177.03570753,0.000238,2]
[387221621,1758659442971,-150.0,0.000238,10]
[387221622,1758659442980,-30721.18558772,0.000238,2]
[387221624,1758659443054,-10606.21976056,0.000238,2]
[387221625,1758659443063,-208.0,0.00023821,2]
[387221626,1758659443072,-542.25,0.00023835,2]
[387221627,1758659443082,-587.62,0.00023835,2]
[387221628,1758659443091,-778.27,0.00023835,2]
[387221629,1758659443100,-1515.33,0.00023835,2]
[387221630,1758659443109,-3653.35,0.00023835,2]
[387221631,1758659443119,-513.41,0.00023835,2]
[387221632,1758659443128,-598.16,0.00023835,2]
[387221633,1758659443137,-499.79,0.00023835,2]
[387221634,1758659443146,-480.0,0.00023835,2]
[387221635,1758659443155,-486.85,0.00023835,2]
[387221636,1758659443165,-603.99,0.00023835,2]
[387221637,1758659443174,-1191.55,0.00023835,2]
[387221638,1758659443183,-480.0,0.00023835,2]
[387221639,1758659443192,-480.0,0.00023835,2]
[387221640,1758659443202,-1568.75,0.00023835,2]
[387221641,1758659443211,-480.0,0.00023835,2]
[387221642,1758659443221,-1051.23,0.00023835,2]
[387221643,1758659443230,-672.82,0.00023835,2]
[387221644,1758659443239,-551.69,0.00023835,2]
[387221645,1758659443249,-490.54,0.00023835,2]
[387221646,1758659443258,-8172.77,0.00023835,2]
[387221647,1758659443269,-2530.7,0.00023835,2]
[387221648,1758659443280,-758.16,0.00023835,2]
[387221649,1758659443289,-663.85,0.00023835,2]
[387221650,1758659443299,-480.0,0.00023835,2]
[387221651,1758659443308,-2500.0,0.00023844,2]
[387221652,1758659443317,-2500.0,0.00023844,2]
[387221653,1758659443327,-742.56671218,0.00023863,2]
[387221654,1758659443336,-150.0,0.00023873,2]
[387221655,1758659443345,-151.94030795,0.00023873,2]
[387221656,1758659443355,-160.96750917,0.00023873,2]
[387221657,1758659443364,-973.8358085,0.00023882,2]
[387221658,1758659443374,-253.54074756,0.00023898,7]
[387221659,1758659443383,-253.54074756,0.00023898,7]
[387221660,1758659443392,-253.54074756,0.00023898,7]
[387221661,1758659443402,-253.54074756,0.00023898,7]
[387221662,1758659443411,-8873.46661082,0.000239,2]
[387221663,1758659443427,-225.07720484,0.00020547,2]
[387221664,1758659443437,-341.96331603,0.000239,2]
[387221665,1758659443536,-395.663574,0.00021918,2]
[387221666,1758659443635,-120.92760603,0.00021918,2]
[387221667,1758659443647,-274.73596797,0.00021918,2]
[387221668,1758659443657,-395.663574,0.00021918,2]
[387221669,1758659443666,-395.663574,0.00021918,2]
[387221670,1758659443675,-183.93689423,0.00021918,2]
[387221671,1758659443686,-211.72667977,0.00021918,2]
[387221672,1758659443696,-395.663574,0.00021918,2]
[387221673,1758659443705,-395.663574,0.00021918,2]
[387221674,1758659443714,-395.663574,0.00021918,2]
[387221675,1758659443724,-395.663574,0.00021918,2]
[387221676,1758659443733,-395.663574,0.00021918,2]
[387221677,1758659443742,-395.663574,0.00021918,2]
[387221678,1758659443754,-395.663574,0.00021918,2]
[387221679,1758659443763,-395.663574,0.00021918,2]
[387221680,1758659443772,-395.663574,0.00021918,2]
[387221681,1758659443782,-311.22890703,0.00021918,2]
[387221682,1758659443794,-84.43466297,0.00021918,2]
[387221683,1758659443803,-4972.42374097,0.000239,2]
[387221684,1758659443814,-5223.64710508,0.000239,2]
[387221685,1758659444043,-1064.36467728,0.00022264,10]
[387221687,1758659445889,-3058.30039993,0.000239,2]
[387221688,1758659445901,-499.999999,0.000239,2]
[387221689,1758659445912,-23914.22484,0.000239,2]
[387221690,1758659445999,-166234.31398066,0.000239,2]
[387221691,1758659446008,-18978.82184013,0.000239,2]
[387221692,1758659446017,-160.0,0.000239,7]
[387221693,1758659446026,-500.0,0.00023911,2]
[387221694,1758659446035,-415.36455882,0.00023947,2]
[387221695,1758659446045,-666.66666667,0.00023947,14]
[387221696,1758659446054,-666.66666667,0.00023947,14]
[387221698,1758659446063,-666.66666667,0.00023947,14]
[387221700,1758659446073,-666.66666667,0.00023947,14]
[387221701,1758659446082,-500.0,0.00023959,2]
[387221702,1758659446091,-500.0,0.00023964,2]
[387221703,1758659446100,-1866.064539,0.0002398,5]
[387221704,1758659446109,-560.079,0.00023993,5]
[387221705,1758659446118,-8263.15001267,0.00024,2]
[387221706,1758659446127,-458.46797629,0.00024,2]
[387221707,1758659446136,-10689.0,0.00024,10]
[387221708,1758659446145,-160.0,0.00024,10]
[387221709,1758659446154,-233.58652103,0.00024,10]
[387221710,1758659446163,-417.15472785,0.00024,10]
[387221711,1758659446173,-417.15472785,0.00024,3]
[387221712,1758659446182,-44033.7051539,0.00024,7]
[387221713,1758659446191,-417.15472785,0.00024,7]
[387221714,1758659446200,-160.0,0.00024,7]
[387221715,1758659446209,-233.58652103,0.00024,7]
[387221716,1758659446218,-1709.72179578,0.00024,2]
[387221717,1758659446228,-160.0,0.00024,7]
[387221718,1758659446237,-160.0,0.00024,10]
[387221719,1758659446246,-160.0,0.00024,10]
[387221720,1758659446255,-160.0,0.00024,7]
[387221721,1758659446264,-160.0,0.00024,10]
[387221722,1758659446273,-160.0,0.00024,7]
[387221723,1758659446288,-160.0,0.00024,7]
[387221724,1758659446303,-1000.0,0.00024,5]
[387221725,1758659446317,-160.0,0.00024,10]
[387221726,1758659446328,-284.57151093,0.00024036,14]
[387221727,1758659446341,-284.57151093,0.00024036,14]
[387221728,1758659446355,-500.0,0.00024042,2]
[387221729,1758659446370,-160.0,0.00024082,12]
[387221730,1758659446383,-666.66666667,0.00024085,14]
[387221731,1758659446399,-666.66666667,0.00024085,14]
[387221732,1758659446414,-666.66666667,0.00024085,14]
[387221733,1758659446427,-666.66666667,0.00024085,14]
[387221734,1758659446440,-500.0,0.00024085,2]
[387221735,1758659446454,-500.0,0.00024108,2]
[387221736,1758659446467,-542.25,0.00024109,2]
[387221737,1758659446481,-587.62,0.00024109,2]
[387221738,1758659446494,-778.27,0.00024109,2]
[387221739,1758659446504,-1050.11377007,0.00024109,2]
[387221755,1758660279694,180.243859,0.00027397,120]
[387221769,1758660632131,-171.0,0.00019068,3]
[387221770,1758660632142,-300.0,0.00019177,2]
[387221771,1758660632151,-480.0,0.00019178,2]
[387221772,1758660632161,-480.0,0.00019178,2]
[387221773,1758660632173,-480.0,0.00019178,2]
[387221774,1758660632182,-480.0,0.00019178,2]
[387221775,1758660632192,-438.23269984,0.00019178,2]
[387221776,1758660632201,-480.0,0.00019178,2]
[387221777,1758660632211,-480.0,0.00019178,2]
[387221778,1758660632222,-480.0,0.00019178,2]
[387221779,1758660632232,-480.0,0.00019178,2]
[387221780,1758660632242,-289.95370098,0.00019178,2]
[387221781,1758660632252,-480.0,0.00019178,2]